fUSD/lending_fUSD_20260103
["ID","MTS","AMOUNT","RATE_DAILY","PERIOD"]
[400380667,1767471032424,-150.0,0.00037745,2]
[400380669,1767471032440,-150.0,0.00037745,2]
[400380671,1767471032450,-150.0,0.00037745,50]
[400380673,1767471032460,-89.88573265,0.00037745,50]
[400380676,1767471032474,-410.11426735,0.00037745,50]
[400380677,1767471032485,-150.0,0.00037745,2]
[400380680,1767471032497,-150.0,0.00037882,50]
[400380682,1767471032508,-150.0,0.00037882,50]
[400380684,1767471032519,-500.0,0.00037882,50]
[400380687,1767471032531,-150.0,0.00037882,50]
[400380689,1767471032542,-241.57970966,0.00037882,50]
[400380692,1767471032553,-150.0,0.00037882,50]
[400380695,1767471032563,-150.0,0.00037882,50]
[400380698,1767471032574,-150.0,0.00037882,50]
[400380701,1767471032594,-500.0,0.00037882,50]
[400380703,1767471032610,-574.47079208,0.00037882,50]
[400380705,1767471032621,-550.57194419,0.00037882,50]
[400380708,1767471032632,-150.0,0.00037882,2]
[400380710,1767471032643,-234.25131594,0.00037919,2]
[400380712,1767471032654,-166.02743077,0.0003792,2]
[400380714,1767471032664,-310.91302542,0.0003792,2]
[400380716,1767471032676,-2189.08697458,0.0003792,2]
[400380718,1767471032687,-613.34009865,0.0003792,2]
[400380720,1767471032698,-186.42,0.00038,14]
[400380723,1767471032708,-151.0,0.00038017,14]
[400380725,1767471032720,-150.0,0.00038019,50]
[400380727,1767471032731,-150.0,0.00038019,50]
[400380729,1767471032742,-500.0,0.00038019,50]
[400380731,1767471032754,-150.0,0.00038019,50]
[400380734,1767471032765,-200.0,0.00038019,50]
[400380736,1767471032776,-200.0,0.00038019,50]
[400380738,1767471032787,-150.0,0.00038019,50]
[400380740,1767471032799,-500.0,0.00038019,50]
[400380742,1767471032809,-819.342,0.00038019,50]
[400380744,1767471032820,-180.63529005,0.00038019,15]
[400380745,1767471032831,-500.0,0.00038019,15]
[400380746,1767471032842,-500.0,0.00038019,15]
[400380747,1767471032854,-500.0,0.00038019,15]
[400380748,1767471032865,-500.0,0.00038019,15]
[400380749,1767471032875,-500.0,0.00038019,15]
[400380750,1767471032887,-500.0,0.00038019,15]
[400380751,1767471032897,-500.0,0.00038019,15]
[400380752,1767471032911,-500.0,0.00038019,15]
[400380753,1767471032922,-500.0,0.00038019,15]
[400380754,1767471032933,-150.82976564,0.00038019,15]
[400380755,1767471032949,-589.4479752,0.00038019,15]
[400380756,1767471032960,-417.75140094,0.00038019,15]
[400380757,1767471032972,-500.0,0.00038019,15]
[400380758,1767471032984,-500.0,0.00038019,15]
[400380759,1767471032995,-500.0,0.00038019,15]
[400380760,1767471033006,-500.0,0.00038019,15]
[400380761,1767471033017,-500.0,0.00038019,15]
[400380762,1767471033027,-500.0,0.00038019,15]
[400380763,1767471033038,-500.0,0.00038019,15]
[400380764,1767471033050,-500.0,0.00038019,15]
[400380765,1767471033061,-500.0,0.00038019,15]
[400380766,1767471033071,-500.0,0.00038019,15]
[400380767,1767471033082,-500.0,0.00038019,15]
[400380768,1767471033093,-500.0,0.00038019,15]
[400380769,1767471033105,-1799.0,0.0003802,5]
[400380770,1767471033115,-36846.10403768,0.0003802,2]
[400380771,1767471033241,-801.95128758,0.0003802,2]
[400380772,1767471033254,-266.99999979,0.0003802,2]
[400380773,1767471033272,-9123.7316167,0.0003802,2]
[400380774,1767471033285,-366.13195705,0.0003802,2]
[400380775,1767471033898,151.0,0.00032552,2]
[400380783,1767471038276,-993.34152341,0.0003802,2]
[400380784,1767471038291,-471421.04477503,0.0003802,2]
[400380785,1767471038330,-2913.66801472,0.0003802,2]
[400380786,1767471038343,-2667.80437864,0.0003802,2]
[400380787,1767471038358,-3585.55480219,0.0003802,2]
[400380788,1767471038371,-1387.88883416,0.0003802,2]
[400380789,1767471038384,-852.00000021,0.0003802,2]
[400380790,1767471038398,-3285.8907953,0.0003802,2]
[400380791,1767471038411,-548.79892829,0.0003802,2]
[400380792,1767471038424,-664.38666661,0.0003802,2]
[400380793,1767471038442,-984.20333733,0.0003802,2]
[400380794,1767471038455,-813.8673398,0.0003802,2]
[400380797,1767471040329,-1267.82664481,0.0003802,2]
[400380800,1767471040380,-59908.36262802,0.0003802,2]
[400380801,1767471040395,-12627.3567,0.0003802,2]
[400380802,1767471040408,-1129.1994,0.0003802,2]
[400380803,1767471040593,-339.17176295,0.0003802,2]
[400380804,1767471040606,-530.6,0.0003802,2]
[400380805,1767471040619,-451.6,0.0003802,2]
[400380806,1767471040632,-7142.45768139,0.0003802,2]
[400380807,1767471040644,-27249.48216851,0.0003802,2]
[400380808,1767471040658,-5401.30184942,0.0003802,2]
[400380809,1767471040671,-1668.2263106,0.0003802,2]
[400380810,1767471040757,-1033.83778917,0.0003802,2]
[400380811,1767471040771,-509.65562623,0.0003802,2]
[400380812,1767471040784,-1421.76578285,0.0003802,2]
[400380816,1767471044060,-3965.76576668,0.0003802,2]
[400380819,1767471044915,-276.9057553,0.0003802,2]
[400380826,1767471045040,-429.85796257,0.0003802,2]
[400380828,1767471046433,-2661.017,0.0003802,2]
[400380853,1767471068648,14765.506478,7.945e-05,2]
[400380854,1767471188139,6752.707599,7.945e-05,2]
[400380856,1767471196578,9433.95291507,0.00043178,60]
[400380857,1767471211982,500.0,0.00043178,120]
[400380858,1767471212226,500.0,0.00043178,120]
[400380859,1767471212512,500.0,0.00043178,120]
[400380860,1767471212710,500.0,0.00043178,120]
[400380861,1767471212960,500.0,0.00043178,120]
[400380862,1767471213219,500.0,0.00043178,120]
[400380863,1767471213459,306.04043387,0.00043178,120]
[400380865,1767471547760,3850.684563,7.945e-05,2]
[400380874,1767472014229,5000.00665546,0.000162,5]
[400380875,1767472015405,177.59483303,0.00043183,120]
[400380876,1767472037124,-690.65356979,0.0001995,15]
[400380877,1767472037145,-325.5186987,0.00031406,2]
[400380879,1767472147113,-155.25,0.00018476,2]
[400380880,1767472147135,-357.5133371,0.0001901,7]
[400380881,1767472147157,-155.25,0.00019707,2]
[400380882,1767472147178,-293.21933829,0.00020323,2]
[400380883,1767472147201,-155.25,0.00020939,2]
[400380884,1767472147228,-155.25,0.00022171,2]
[400380885,1767472147251,-155.25,0.00023402,2]
[400380886,1767472147273,-155.25,0.00024634,2]
[400380887,1767472147294,-155.25,0.00025866,2]
[400380888,1767472147318,-155.25,0.00027098,2]
[400380889,1767472147340,-155.25,0.00028329,2]
[400380890,1767472147361,-155.25,0.00029561,2]
[400380891,1767472147382,-226.94331929,0.0003,30]
[400380892,1767472159220,-438.50754688,0.0003,30]
[400380893,1767472159242,-460.28795213,0.00030693,2]
[400380894,1767472159263,-155.25,0.00030793,2]
[400380895,1767472159284,-155.25,0.00032024,2]
[400380896,1767472159308,-265.918471,0.00033089,2]
[400380897,1767472159331,-155.25,0.00033256,2]
[400380898,1767472159352,-460.28795212,0.00034251,2]
[400380899,1767472159373,-155.25,0.00034488,2]
[400380900,1767472159395,-289.08751573,0.00034546,120]
[400380901,1767472159416,-193.57716282,0.00034546,120]
[400380902,1767472159437,-300.0,0.00034546,120]
[400380903,1767472159458,-480.0,0.00034851,3]
[400380904,1767472159478,-6499.77085105,0.00034852,60]
[400380905,1767472161667,151.0,0.00027724,2]
[400380906,1767472178290,151.0,0.00031561,2]
[400380907,1767472187200,155.49,0.00013699,2]
[400380908,1767472187225,155.49,0.00020187,2]
[400380909,1767472187329,155.49,0.00026676,2]
[400380910,1767472187528,155.49,0.00033165,2]
[400380911,1767472194859,151.0,0.00031328,2]
[400380912,1767472211543,151.0,0.00031376,2]
[400380913,1767472222143,260.79,0.00031376,2]
[400380914,1767472228334,151.0,0.00031376,2]
[400380933,1767472231473,-155.25,0.00035719,2]
[400380934,1767472231483,-999.0,0.00036889,3]
[400380935,1767472231492,-155.25,0.00036951,2]
[400380936,1767472231502,-919.40427193,0.0003709,3]
[400380937,1767472231514,-280.59572807,0.0003709,3]
[400380938,1767472231523,-300.0,0.0003709,3]
[400380939,1767472231533,-300.0,0.0003709,2]
[400380940,1767472231543,-8347.79,0.00037091,38]
[400380941,1767472231552,-2857.99,0.00037254,2]
[400380942,1767472231562,-500.0,0.00037532,20]
[400380943,1767472231571,-828.82659575,0.00037648,2]
[400380944,1767472231583,-153.82,0.00037744,2]
[400380946,1767472231592,-150.0,0.00037745,50]
[400380948,1767472231602,-150.0,0.00037745,50]
[400380950,1767472231611,-150.0,0.00037745,50]
[400380952,1767472231621,-203.12029181,0.00037745,50]
[400380954,1767472231631,-222.99035429,0.00037745,50]
[400380956,1767472231640,-150.0,0.00037745,50]
[400380958,1767472231649,-460.28795212,0.00037809,2]
[400380960,1767472231659,-1000.0,0.0003782,2]
[400380962,1767472231669,-2500.0,0.0003782,2]
[400380964,1767472231679,-150.0,0.00037882,50]
[400380967,1767472231689,-156.69737111,0.00037882,50]
[400380968,1767472231699,-150.0,0.00037882,50]
[400380970,1767472231708,-150.0,0.00037882,50]
[400380973,1767472231718,-183.42552952,0.00037908,15]
[400380976,1767472231731,-500.0,0.00037908,15]
[400380979,1767472231741,-500.0,0.00037908,15]
[400380981,1767472231751,-500.0,0.00037908,15]
[400380983,1767472231760,-500.0,0.00037908,15]
[400380985,1767472231770,-500.0,0.00037908,15]
[400380987,1767472231779,-500.0,0.00037908,15]
[400380989,1767472231788,-500.0,0.00037908,15]
[400380991,1767472231798,-500.0,0.00037908,15]
[400380993,1767472231807,-500.0,0.00037908,15]
[400380995,1767472231816,-500.0,0.00037908,15]
[400380997,1767472231825,-500.0,0.00037908,15]
[400380999,1767472231835,-500.0,0.00037908,15]
[400381001,1767472231844,-500.0,0.00037908,15]
[400381003,1767472231853,-221.85463324,0.00037908,15]
[400381005,1767472231863,-500.0,0.00037908,15]
[400381007,1767472231872,-500.0,0.00037908,15]
[400381009,1767472231882,-500.0,0.00037908,15]
[400381011,1767472231891,-500.0,0.00037908,15]
[400381013,1767472231901,-500.0,0.00037908,15]
[400381015,1767472231910,-500.0,0.00037908,15]
[400381017,1767472231923,-500.0,0.00037908,15]
[400381019,1767472231933,-500.0,0.00037908,15]
[400381021,1767472231943,-500.0,0.00037908,15]
[400381023,1767472231952,-150.0,0.00037908,15]
[400381025,1767472231962,-500.0,0.00037908,15]
[400381027,1767472231971,-500.0,0.00037908,15]
[400381029,1767472231981,-500.0,0.00037908,15]
[400381031,1767472231996,-500.0,0.00037908,15]
[400381033,1767472232012,-500.0,0.00037908,15]
[400381035,1767472232021,-500.0,0.00037908,15]
[400381037,1767472232031,-500.0,0.00037908,15]
[400381039,1767472232042,-500.0,0.00037908,15]
[400381041,1767472232051,-500.0,0.00037908,15]
[400381044,1767472232062,-500.0,0.00037908,15]
[400381046,1767472232072,-186.42,0.00037919,14]
[400381048,1767472232081,-655.474,0.00037919,50]
[400381050,1767472232091,-552.00608874,0.00037919,2]
[400381052,1767472232100,-6899.48295535,0.0003792,2]
[400381054,1767472232113,-472.22747013,0.0003792,2]
[400381056,1767472232127,-5838.26775858,0.0003792,2]
[400381111,1767472237600,-166.02743077,0.00037919,2]
[400381112,1767472237611,-3140.34538292,0.0003792,2]
[400381113,1767472237624,-1780.60186249,0.0003792,2]
[400381114,1767472237656,-443.21634454,0.0003792,2]
[400381115,1767472237715,-16996.08223916,0.0003792,2]
[400381117,1767472239603,-333.26194966,0.0003792,2]
[400381118,1767472239737,-1317.23703355,0.0003792,2]
[400381119,1767472239748,-357.8178948,0.0003792,2]
[400381120,1767472239759,-386.76681126,0.0003792,2]
[400381121,1767472239846,-403.088,0.0003792,2]
[400381122,1767472239903,-1760.29806479,0.0003792,2]
[400381131,1767472244019,-168433.65176334,0.0003792,2]
[400381132,1767472244034,-376303.14367415,0.0003792,2]
[400381133,1767472244047,-978.26568528,0.0003792,2]
[400381134,1767472244059,-998.9063611,0.0003792,2]
[400381135,1767472244071,-1289.69382742,0.0003792,2]
[400381136,1767472244082,-2495.26019397,0.0003792,2]
[400381137,1767472244094,-1245.20416491,0.0003792,2]
[400381138,1767472244142,-539.44516753,0.0003792,2]
[400381139,1767472245422,-44468.57517599,0.0003792,2]
[400381140,1767472245435,-27296.52579565,0.0003792,2]
[400381141,1767472245749,-929.08405125,0.0003792,2]
[400381142,1767472342972,151.0,0.00030388,2]
[400381143,1767472343062,151.0,0.00030388,2]
[400381144,1767472344870,151.0,0.00030388,2]
[400381146,1767473075575,6516.96502972,0.00043184,60]
[400381147,1767473237136,-151.0,0.00031004,2]
[400381148,1767473237158,-151.0,0.00031066,2]
[400381149,1767473237178,-3246.24,0.00033984,2]
[400381150,1767473237199,-153.30093913,0.00034016,2]
[400381151,1767473237219,-274.40592791,0.00034016,2]
[400381152,1767473237239,-500.0,0.00035619,2]
[400381153,1767473237259,-421.714536,0.0003665,2]
[400381154,1767473237280,-169.91915114,0.00036835,2]
[400381155,1767473237301,-200.0,0.00036841,2]
[400381156,1767473237322,-162.74,0.00036935,2]
[400381157,1767473237343,-529.46,0.00036997,2]
[400381158,1767473237364,-459.18,0.00037425,2]
[400381159,1767473237384,-1600.0,0.00037619,3]
[400381160,1767473237405,-150.0,0.00037619,2]
[400381161,1767473237425,-9753.33809536,0.0003762,2]
[400381162,1767473241129,-255.79,0.00036766,2]
[400381163,1767473241151,-1397.57869301,0.0003762,2]
[400381164,1767473346114,-151.0,0.0003111,2]
[400381165,1767473346137,-151.0,0.00031113,2]
[400381166,1767473361325,151.0,0.00031254,2]
[400381167,1767473378157,151.0,0.00031254,2]
[400381168,1767473394644,151.0,0.00031194,2]
[400381172,1767473431557,-165.96784984,0.0003742,2]
[400381173,1767473431572,-552.02375502,0.00037518,3]
[400381174,1767473431584,-683.2525129,0.00037518,3]
[400381175,1767473431596,-364.72373208,0.00037518,3]
[400381176,1767473431605,-304.29322571,0.00037519,15]
[400381177,1767473431618,-16.04110524,0.00037519,15]
[400381178,1767473431628,-187.7714291,0.00037519,15]
[400381179,1767473431638,-500.0,0.00037519,15]
[400381180,1767473431648,-500.0,0.00037519,7]
[400381181,1767473431657,-500.0,0.00037519,15]
[400381182,1767473431668,-500.0,0.00037519,15]
[400381183,1767473431678,-487.13817388,0.00037519,15]
[400381184,1767473431690,-12.86182612,0.00037519,15]
[400381185,1767473431701,-203.5680945,0.00037519,15]
[400381186,1767473431712,-415.30545831,0.00037519,15]
[400381187,1767473431724,-84.69454169,0.00037519,15]
[400381188,1767473431735,-188.15728237,0.00037519,15]
[400381189,1767473431747,-311.84271763,0.00037519,15]
[400381190,1767473431758,-500.0,0.00037519,15]
[400381191,1767473431768,-500.0,0.00037519,15]
[400381192,1767473431778,-500.0,0.00037519,15]
[400381193,1767473431788,-500.0,0.00037519,15]
[400381194,1767473431798,-500.0,0.00037519,15]
[400381195,1767473431808,-500.0,0.00037519,15]
[400381196,1767473431819,-500.0,0.00037519,15]
[400381197,1767473431829,-500.0,0.00037519,15]
[400381198,1767473431839,-500.0,0.00037519,15]
[400381199,1767473431848,-500.0,0.00037519,15]
[400381200,1767473431859,-500.0,0.00037519,15]
[400381201,1767473431869,-500.0,0.00037519,15]
[400381202,1767473431879,-500.0,0.00037519,15]
[400381203,1767473431889,-500.0,0.00037519,15]
[400381204,1767473431898,-500.0,0.00037519,15]
[400381205,1767473431913,-272.18546332,0.00037519,15]
[400381206,1767473431923,-500.0,0.00037519,15]
[400381207,1767473431933,-500.0,0.00037519,15]
[400381208,1767473431943,-186.43,0.00037519,14]
[400381209,1767473431953,-909.76410531,0.0003752,2]
[400381210,1767473431966,-1473.42006565,0.0003752,2]
[400381211,1767473431978,-25290.0,0.0003752,2]
[400381212,1767473431991,-4727.193815,0.0003752,2]
[400381213,1767473432003,-23000.0,0.0003752,2]
[400381219,1767473437650,-1680.96,0.0003752,2]
[400381220,1767473437662,-5275.90333579,0.0003752,2]
[400381221,1767473437674,-3039.84169753,0.0003752,2]
[400381222,1767473437687,-2418.07525,0.0003752,2]
[400381223,1767473437699,-1396.64,0.0003752,2]
[400381224,1767473437711,-369.32,0.0003752,2]
[400381265,1767473438250,-1991.36651571,0.0003752,2]
[400381293,1767473438514,-183.70763251,0.0003752,2]
[400381304,1767473439666,-10013.71167344,0.0003752,2]
[400381305,1767473439882,-10321.41427449,0.0003752,2]
[400381306,1767473439936,-2663.2606002,0.0003752,2]
[400381313,1767473443274,-3760.13058263,0.0003752,2]
[400381317,1767473445650,-1762.69369867,0.0003752,2]
[400381318,1767473445662,-418.36070652,0.0003752,2]
[400381319,1767473445756,-1556.49999999,0.0003752,2]
[400381320,1767473445768,-249429.40085843,0.0003752,2]
[400381323,1767473495716,1213.03024044,0.00043184,60]
[400381324,1767474034131,-151.0,0.00029046,2]
[400381325,1767474034220,-439.0,0.00029046,2]
[400381326,1767474359391,-151.0,0.00029585,2]
[400381327,1767474359413,-99.18075044,0.00035475,2]
[400381328,1767474491624,151.0,0.00028557,2]
[400381329,1767474508037,151.0,0.00028493,2]
[400381330,1767474572466,151.0,0.00028509,2]
[400381331,1767474578619,150.27,0.00018404,2]
[400381332,1767474578846,150.27,0.00019487,2]
[400381333,1767474579046,150.27,0.00020569,2]
[400381334,1767474579252,150.27,0.00021652,2]
[400381335,1767474579464,150.27,0.00022734,2]
[400381336,1767474579668,150.27,0.00023817,2]
[400381337,1767474580083,150.27,0.000249,2]
[400381338,1767474580295,150.27,0.00025982,2]
[400381339,1767474580511,150.27,0.00027065,2]
[400381340,1767474580709,150.27,0.00028147,2]
[400381341,1767474580895,150.27,0.0002923,2]
[400381342,1767474581112,150.27,0.00030313,2]
[400381343,1767474581331,150.27,0.00031395,2]
[400381344,1767474581533,150.27,0.00032478,2]
[400381345,1767474581743,150.27,0.0003356,2]
[400381346,1767474581962,150.27,0.00034643,2]
[400381347,1767474588803,151.0,0.00028205,2]
[400381348,1767474604903,151.0,0.00028327,2]
[400381349,1767474621273,151.0,0.00028326,2]
[400381362,1767474631738,-166.66,0.00035574,30]
[400381364,1767474631752,-150.27,0.00035726,2]
[400381366,1767474631762,-167.17782356,0.00036223,2]
[400381367,1767474631776,-166.66,0.00036323,30]
[400381368,1767474631787,-713.03,0.00036749,120]
[400381369,1767474631796,-150.27,0.00036808,2]
[400381370,1767474631806,-500.0,0.00036879,20]
[400381371,1767474631816,-169.91915114,0.00036879,2]
[400381372,1767474631826,-153.82,0.00036979,2]
[400381373,1767474631836,-293.316777,0.00037064,2]
[400381374,1767474631847,-166.66,0.00037072,30]
[400381375,1767474631857,-436.215,0.0003725,2]
[400381376,1767474631867,-138.79965892,0.0003732,2]
[400381377,1767474631880,-358.005821,0.0003732,2]
[400381378,1767474632131,-195.8134,0.0003732,2]
[400381379,1767474632144,-165.96784979,0.00037371,2]
[400381380,1767474632154,-154.93216666,0.00037371,26]
[400381381,1767474632164,-169.86609172,0.00037371,2]
[400381382,1767474632174,-246.69037083,0.00037418,3]
[400381383,1767474632186,-805.848,0.00037418,3]
[400381384,1767474632198,-547.46162917,0.00037418,3]
[400381385,1767474632208,-411.90455113,0.00037419,15]
[400381386,1767474632217,-189.61394797,0.00037419,15]
[400381387,1767474632228,-500.0,0.00037419,15]
[400381388,1767474632238,-500.0,0.00037419,15]
[400381389,1767474632252,-107.97590205,0.00037419,15]
[400381390,1767474632264,-392.02409795,0.00037419,15]
[400381391,1767474632274,-500.0,0.00037419,15]
[400381392,1767474632284,-1104.83255605,0.00037419,2]
[400381393,1767474632295,-638.67352101,0.00037419,2]
[400381394,1767474632307,-2083.5064752,0.00037419,2]
[400381395,1767474632319,-3753.07156661,0.00037419,2]
[400381396,1767474632330,-3814.8814121,0.00037419,2]
[400381397,1767474632340,-633.26644828,0.00037419,15]
[400381398,1767474632350,-192.2556202,0.00037419,15]
[400381399,1767474632360,-196.90949593,0.00037419,15]
[400381400,1767474632369,-176.81466844,0.00037419,15]
[400381401,1767474632379,-1432.0,0.0003742,5]
[400381402,1767474632388,-578.87119369,0.0003742,2]
[400381405,1767474632399,-1487.95536,0.0003742,2]
[400381407,1767474632412,-4820.28187,0.0003742,2]
[400381409,1767474632423,-510.0,0.0003742,2]
[400381411,1767474632435,-594.49,0.0003742,2]
[400381414,1767474632447,-10757.83684707,0.0003742,2]
[400381419,1767474637707,151.0,0.00029439,2]
[400381420,1767474637783,-8612.47309849,0.0003742,2]
[400381421,1767474637799,-1611.51836,0.0003742,2]
[400381422,1767474637811,-748.26893567,0.0003742,2]
[400381423,1767474637823,-743.69682092,0.0003742,2]
[400381424,1767474637843,-1888.38,0.0003742,2]
[400381425,1767474637899,-18054.0,0.0003742,2]
[400381426,1767474637912,-2947.80744003,0.0003742,2]
[400381427,1767474637923,-1496.048167,0.0003742,2]
[400381428,1767474637934,-1021.13223865,0.0003742,2]
[400381429,1767474637955,-523.66243998,0.0003742,2]
[400381436,1767474639871,-392.79297587,0.0003742,2]
[400381437,1767474639883,-1790.41211454,0.0003742,2]
[400381438,1767474639895,-903.12,0.0003742,2]
[400381439,1767474644320,-373.43074034,0.00037419,15]
[400381440,1767474644330,-1304.73943754,0.0003742,2]
[400381444,1767474645859,-1000.0,0.0003732,2]
[400381445,1767474645869,-12567.95713481,0.0003742,2]
[400381446,1767474645881,-505.01796416,0.0003742,2]
[400381447,1767474645893,-48129.62611205,0.0003742,2]
[400381448,1767474645914,-526.68202661,0.0003742,2]
[400381449,1767474645925,-4808.08929471,0.0003742,2]
[400381450,1767474645939,-3030.75271145,0.0003742,2]
[400381451,1767474646024,-9678.84951825,0.0003742,2]
[400381452,1767474646105,-27.79786117,0.0003742,2]
[400381453,1767474646117,-1145.80077963,0.0003742,2]
[400381454,1767474646186,-2134.87274842,0.0003742,2]
[400381457,1767474654020,151.0,0.00029439,2]
[400381458,1767474670879,151.0,0.0002927,2]
[400381459,1767474687033,151.0,0.00029319,2]
[400381460,1767474703476,151.0,0.00029448,2]
[400381461,1767474720304,151.0,0.00029423,2]
[400381462,1767474904832,11.26,0.00013699,2]
[400381463,1767474904866,163.0,0.00013699,2]
[400381464,1767475642136,-174.26,0.00020187,2]
[400381465,1767475642157,-399.50625374,0.0002044,2]
[400381466,1767475642178,-300.0,0.00020692,2]
[400381467,1767475642214,-103.4018431,0.00021577,2]
[400381468,1767475674910,-463.17371677,0.00018,2]
[400381469,1767475678491,-244.89063938,0.00018,2]
[400381470,1767475680670,-334.67187531,0.00018,2]
[400381471,1767475682825,-243.7905508,0.00018,2]
[400381472,1767475685034,-195.57434488,0.00018,2]
[400381473,1767475686625,-212.7008551,0.00018,2]
[400381474,1767475688303,1113.457858,0.0001791,2]
[400381475,1767475688798,-392.0,0.00018,2]
[400381476,1767475693493,1200.0,0.00017999,2]
[400381477,1767475695429,-209.38044353,0.00018,2]
[400381478,1767475696930,-364.72266039,0.00018,2]
[400381479,1767475701049,-160.75987829,0.00018,2]
[400381481,1767475707597,-179.51236522,0.00018,2]
[400381482,1767475709633,-300.0,0.00018,2]
[400381484,1767475712812,-187.8922645,0.00018,2]
[400381485,1767475717604,-187.80115239,0.00018,2]
[400381486,1767475718659,7219.07870322,0.00016,4]
[400381487,1767475720889,-179.79888882,0.00018,2]
[400381488,1767475724775,-243.41131546,0.00018,2]
[400381489,1767475726823,-300.86586413,0.00018,2]
[400381490,1767475729440,-262.12448964,0.00018,2]
[400381491,1767475732895,-180.42847525,0.00018,2]
[400381492,1767475741456,-168.52581633,0.00018,2]
[400381493,1767475744148,-187.31206433,0.00018,2]
[400381494,1767475749176,-182.61842055,0.00018,2]
[400381495,1767475753160,-23461.19136513,0.00018,2]
[400381496,1767475753182,-236.79532104,0.00021577,2]
[400381497,1767475753202,-198.91471567,0.00022106,2]
[400381498,1767475753224,-3541.92896348,0.00022188,2]
[400381499,1767475753249,-300.0,0.00022206,2]
[400381500,1767475753270,-300.0,0.00022206,2]
[400381501,1767475753291,-151.0,0.00026656,2]
[400381502,1767475753312,-174.26,0.00026676,2]
[400381503,1767475753332,-167.86,0.00028659,2]
[400381504,1767475753352,-174.26,0.00033165,2]
[400381505,1767475763068,151.0,0.00027575,2]
[400381508,1767475773875,3348.6590146,0.00032038,2]
[400381509,1767475779299,151.0,0.00027514,2]
[400381510,1767475795667,151.0,0.00027405,2]
[400381511,1767475802580,151.0,0.00027405,2]
[400381512,1767475814498,151.0,0.00027527,2]
[400381513,1767475817529,453.2350306,0.00032038,2]
[400381514,1767475818758,151.0,0.00027527,2]
[400381523,1767475831886,151.0,0.00027527,2]
[400381524,1767475831904,-570.88444884,0.00035413,42]
[400381525,1767475831915,-84.10955116,0.00035413,42]
[400381526,1767475831925,-354.6377,0.00035475,2]
[400381527,1767475831935,-200.0,0.00035649,2]
[400381528,1767475831945,-390.68226413,0.00035872,2]
[400381529,1767475831996,-1461.73773587,0.00035872,2]
[400381530,1767475832006,-425.78433567,0.00035891,2]
[400381531,1767475832053,-74.21566433,0.00035891,2]
[400381532,1767475832063,-150.0,0.00035958,2]
[400381533,1767475832073,-150.0,0.00036,2]
[400381534,1767475832084,-1600.0,0.00036229,3]
[400381535,1767475832094,-400.0,0.00036229,3]
[400381536,1767475832104,-174.153,0.0003623,44]
[400381537,1767475832114,-7027.63733228,0.00036231,2]
[400381538,1767475832126,-8833.51015802,0.00036231,2]
[400381679,1767475835322,151.0,0.00027527,2]
[400381686,1767475838196,-20274.93599447,0.00036231,2]
[400381688,1767475838207,-277.99410263,0.00036231,2]
[400381690,1767475838219,-6993.9824126,0.00036231,2]
[400381692,1767475838229,-500.0,0.00036563,15]
[400381694,1767475838238,-500.0,0.00036563,15]
[400381696,1767475838248,-500.0,0.00036563,15]
[400381698,1767475838258,-260.91804756,0.00036563,15]
[400381711,1767475840056,-239.08195244,0.00036563,15]
[400381712,1767475840066,-626.70530425,0.00036563,15]
[400381713,1767475840075,-37.50274331,0.00036563,15]
[400381714,1767475840087,-462.49725669,0.00036563,15]
[400381715,1767475840097,-165.8409117,0.00036563,15]